bitfinex-derivatives/quotes_BNBF0:USTF0_20250316
["timestamp","ask_amount","ask_price","bid_price","bid_amount"]
[1742120464686,2.50412338,601.15,599.91,4.73338334]
[1742120467182,2.50412338,601.13,599.91,4.73338334]
[1742120468885,2.50412338,601.21,599.91,4.73338334]
[1742120471286,2.50412338,601.26,599.91,4.73338334]
[1742120474093,2.50412338,601.16,599.91,4.73338334]
[1742120476491,2.50412338,601.37,599.91,4.73338334]
[1742120479198,2.50412338,601.47,599.91,4.73338334]
[1742120479399,0.33252419,601.46,599.92,1.03300753]
[1742120479597,0.33252419,601.46,599.93,1.03300753]
[1742120479795,0.33252419,601.46,599.94,1.03300753]
[1742120479992,0.33252419,601.46,599.96,0.33335555]
[1742120481298,2.50412338,600.94,599.96,0.33335555]
[1742120481498,2.50412338,600.94,599.97,1.03291907]
[1742120481697,2.50412338,600.94,599.98,1.36626351]
[1742120481890,2.50412338,600.94,599.99,1.36625795]
[1742120482095,2.50412338,600.94,600.0,0.33333333]
[1742120482498,2.50412338,600.94,600.01,1.225]
[1742120482698,2.50412338,600.94,600.02,0.33332222]
[1742120483400,2.50412338,600.95,600.02,1.86732222]
[1742120485303,2.50412338,601.01,600.02,1.86732222]
[1742120487905,2.50412338,601.04,600.02,1.86732222]
[1742120489799,2.505786,601.42,600.02,1.86732222]
[1742120490406,2.505786,601.42,600.03,1.20189227]
[1742120490602,2.505786,601.42,600.04,0.33331111]
[1742120491707,2.83664757,601.46,600.04,0.33331111]
[1742120492207,0.33252971,601.45,600.04,0.33331111]
[1742120507026,0.33252971,601.45,600.04,2.77231111]
[1742120507225,2.50412338,601.29,600.04,2.77231111]
[1742120509326,2.50412338,600.93,600.04,2.77231111]
[1742120511734,2.50412338,600.7,600.04,2.77231111]
[1742120513531,2.50412338,600.7,600.04,3.91231111]
[1742120514036,2.50412338,600.68,600.04,3.91231111]
[1742120518235,2.50412338,600.87,600.04,3.91231111]
[1742120520539,2.50412338,601.38,600.04,3.91231111]
[1742120522139,0.33252971,601.45,600.04,3.91231111]
[1742120529744,2.50412338,601.29,600.04,3.91231111]
[1742120531545,2.50412338,601.09,600.04,3.91231111]
[1742120533842,2.50412338,600.92,600.04,3.91231111]
[1742120536048,2.50412338,600.91,600.04,3.91231111]
[1742120538149,2.50412338,601.28,600.04,3.91231111]
[1742120540047,2.50412338,601.43,600.04,3.91231111]
[1742120541953,2.50412338,601.41,600.04,3.91231111]
[1742120544858,2.50412338,601.4,600.04,3.91231111]
[1742120547256,0.33256289,601.39,600.04,3.91231111]
[1742120547857,2.50412338,601.34,600.04,3.91231111]
[1742120549959,2.50412338,601.23,600.04,3.91231111]
[1742120552565,2.50412338,601.19,600.04,3.91231111]
[1742120554865,2.50412338,601.14,600.04,3.91231111]
[1742120556863,2.50412338,601.11,600.04,3.91231111]
[1742120558262,2.50412338,601.1,600.04,3.91231111]
[1742120559767,2.50412338,601.11,600.04,3.91231111]
[1742120563367,2.50412338,600.92,600.04,3.91231111]
[1742120564772,2.50412338,600.89,600.04,3.91231111]
[1742120567177,2.50412338,600.85,600.04,3.91231111]
[1742120570471,2.50412338,600.87,600.04,3.91231111]
[1742120572174,2.50412338,601.06,600.04,3.91231111]
[1742120573976,2.50412338,601.07,600.04,3.91231111]
[1742120576580,0.33256289,601.39,600.04,3.91231111]
[1742120585985,2.50412338,601.28,600.04,3.91231111]
[1742120586185,0.33262926,601.27,600.04,3.91231111]
[1742120586588,0.33262926,601.27,600.04,3.579]
[1742120587088,0.33262926,601.27,599.42,0.28991665]
[1742120587387,0.33262926,601.27,599.44,0.33364473]
[1742120587990,2.50412338,600.29,599.44,0.33364473]
[1742120590393,2.50412338,600.53,599.44,0.33364473]
[1742120592689,2.50412338,601.2,599.44,0.33364473]
[1742120592894,0.33267906,601.18,599.44,0.33364473]
[1742120593892,0.33267906,601.18,599.45,2.76734813]
[1742120594098,0.33267906,601.18,599.46,3.75588886]
[1742120594298,0.33267906,601.18,599.47,3.75588886]
[1742120594492,0.33267906,601.18,599.48,3.75588886]
[1742120594693,0.33267906,601.18,599.49,3.75588886]
[1742120594901,0.33267906,601.18,599.44,0.33364473]
[1742120595098,0.33267906,601.18,599.45,1.06456565]
[1742120595298,0.33267906,601.18,599.46,0.3336336]
[1742120599602,2.50412338,601.11,599.46,0.3336336]
[1742120600198,0.33272887,601.09,599.46,0.3336336]
[1742120601403,2.50412338,600.96,599.46,0.3336336]
[1742120601797,0.33281192,600.94,599.46,0.3336336]
[1742120603500,2.50412338,600.54,599.46,0.3336336]
[1742120603903,0.33303914,600.53,599.46,0.3336336]
[1742120619412,2.50412338,600.93,599.46,0.3336336]
[1742120619613,2.83694084,600.93,599.46,0.3336336]
[1742120620612,0.332823,600.92,599.46,0.3336336]
[1742120623412,2.50412338,600.42,599.46,0.3336336]
[1742120625719,2.50412338,600.53,599.46,0.3336336]
[1742120628121,2.50412338,600.55,599.46,0.3336336]
[1742120629723,2.50412338,600.57,599.46,0.3336336]
[1742120632031,2.50412338,600.51,599.46,0.3336336]
[1742120633220,2.50412338,600.59,599.46,0.3336336]
[1742120634721,2.50412338,600.61,599.46,0.3336336]
[1742120636134,0.332823,600.92,599.46,0.3336336]
[1742120636135,2.50412338,600.72,599.46,0.3336336]
[1742120637537,2.50412338,600.57,599.46,0.3336336]
[1742120639641,2.50412338,600.65,599.46,0.3336336]
[1742120641342,2.50412338,600.66,599.46,0.3336336]
[1742120644345,2.50412338,600.74,599.46,0.3336336]
[1742120646443,2.50412338,600.8,599.46,0.3336336]
[1742120647954,2.83701286,600.8,599.46,0.3336336]
[1742120648253,0.33289502,600.79,599.46,0.3336336]
[1742120648758,2.50412338,600.73,599.47,1.807]
[1742120649055,0.33293381,600.72,599.47,1.807]
[1742120651656,2.50412338,600.62,599.47,1.807]
[1742120652555,2.83711262,600.62,599.47,1.807]
[1742120653556,0.33299478,600.61,599.47,1.807]
[1742120664069,0.33299478,600.61,599.48,1.393]
[1742120664470,2.50412338,600.6,599.48,1.393]
[1742120664676,0.33300587,600.59,599.48,1.393]
[1742120667273,2.50412338,600.52,599.48,1.393]
[1742120667466,0.33305024,600.51,599.48,1.393]
[1742120669674,2.50412338,600.27,599.48,1.393]
[1742120672377,0.33305024,600.51,599.48,1.393]
[1742120674287,2.50412338,600.39,599.48,1.393]
[1742120676476,2.50412338,600.36,599.48,1.393]
[1742120678480,2.50412338,600.47,599.48,1.393]
[1742120680582,0.33305024,600.51,599.48,1.393]
[1742120690485,2.50412338,600.35,599.48,1.393]
[1742120691091,2.50412338,600.35,599.47,1.807]
[1742120693091,2.50412338,600.11,599.47,1.807]
[1742120693493,2.50412338,600.11,599.48,1.705]
[1742120694692,0.33305024,600.51,599.48,1.705]
[1742120694693,2.50412338,600.21,599.48,1.705]
[1742120696796,2.50412338,600.27,599.48,1.705]
[1742120698805,2.50412338,600.25,599.48,1.705]
[1742120706505,0.33305024,600.51,599.48,1.705]
[1742120708703,2.50412338,600.18,599.48,1.705]
[1742120709309,2.50412338,600.18,599.49,1.168]
[1742120710909,2.50412338,600.44,599.49,1.168]
[1742120712515,0.33305024,600.51,599.49,1.168]
[1742120716009,0.33305024,600.51,599.48,0.58437522]
[1742120716218,0.33305024,600.51,597.65,1.24313126]
[1742120716410,0.33305024,600.51,597.66,3.76690164]
[1742120716616,2.50412338,600.29,598.68,0.29016201]
[1742120716813,2.50412338,600.29,597.79,0.33456565]
[1742120717009,2.50412338,600.29,597.8,3.7660586]
[1742120717209,2.50412338,600.29,597.81,4.07288855]
[1742120717514,2.50412338,600.29,597.82,4.07288855]
[1742120717725,0.33317785,600.28,597.94,0.33448172]
[1742120718013,0.33317785,600.28,597.95,4.07288855]
[1742120718312,2.50412338,600.06,597.96,4.07288855]
[1742120718616,2.50412338,600.06,598.06,0.3344146]
[1742120718809,2.50412338,600.06,598.07,4.07285866]
[1742120719014,2.50412338,600.06,598.08,4.07285866]
[1742120719313,2.50412338,600.06,598.09,4.07285866]
[1742120719514,2.50412338,600.06,598.1,3.7660586]
[1742120719715,2.50412338,600.06,598.12,0.33438106]
[1742120720015,2.50412338,600.06,598.13,4.07285461]
[1742120720314,2.50412338,600.06,598.15,0.33436428]
[1742120720515,2.50412338,599.99,598.16,4.07285461]
[1742120720714,2.50412338,599.99,598.18,0.33434752]
[1742120720915,2.50412338,599.99,598.19,4.07285461]
[1742120721115,2.50412338,599.99,598.21,0.33433075]
[1742120721414,2.50412338,599.99,598.22,4.07285461]
[1742120721714,2.50412338,599.99,598.23,4.07285461]
[1742120721908,2.50412338,599.99,598.25,0.33430839]
[1742120722109,2.50412338,599.99,598.26,7.24434364]
[1742120722309,2.50412338,599.99,598.28,0.33429163]
[1742120722512,2.50412338,599.99,598.29,4.06843417]
[1742120722715,2.50412338,599.99,598.31,0.33427487]
[1742120723015,2.50412338,599.99,598.32,3.76163816]
[1742120723211,2.50412338,600.0,598.34,0.33425811]
[1742120723415,2.50412338,600.0,598.35,3.76163816]
[1742120723610,2.50412338,600.0,598.37,0.33424135]
[1742120723813,2.50412338,600.0,598.38,3.76163816]
[1742120724013,2.50412338,600.0,598.4,0.33422459]
[1742120724209,2.50412338,600.0,598.41,3.76163816]
[1742120724413,2.50412338,600.0,598.43,0.33420784]
[1742120724612,2.50412338,600.0,598.44,3.76163816]
[1742120724814,2.50412338,600.0,598.46,0.33419109]
[1742120725114,2.50412338,600.0,598.47,3.15247921]
[1742120725316,2.50412338,600.0,598.49,0.33417433]
[1742120725517,2.50412338,600.0,598.5,3.15247921]
[1742120725719,0.33317785,600.28,598.52,0.33415758]
[1742120725915,0.33317785,600.28,598.53,3.15247921]
[1742120726118,0.33317785,600.28,598.55,0.33414084]
[1742120726317,0.33317785,600.28,598.56,3.15247921]
[1742120726519,0.33317785,600.28,598.58,0.33412409]
[1742120726819,0.33317785,600.28,598.59,1.44456184]
[1742120727017,0.33317785,600.28,598.61,0.33410734]
[1742120727319,0.33317785,600.28,598.62,2.26522738]
[1742120727518,0.33317785,600.28,598.62,1.20026413]
[1742120727713,0.33317785,600.28,598.63,0.33409618]
[1742120727918,0.33317785,600.28,598.64,1.06458859]
[1742120728119,0.33317785,600.28,598.63,0.33409618]
[1742120728621,0.33317785,600.28,598.64,1.22883817]
[1742120728914,0.33317785,600.28,598.65,0.33408502]
[1742120736119,0.33317785,600.28,598.66,1.22704052]
[1742120736524,0.33317785,600.28,598.67,0.33407386]
[1742120741226,0.33317785,600.28,598.68,1.06266927]
[1742120741424,0.33317785,600.28,598.68,1.2266745]
[1742120741825,0.33317785,600.28,598.7,0.33405712]
[1742120742628,0.33317785,600.28,598.71,1.2266745]
[1742120742824,0.33317785,600.28,598.73,0.33404038]
[1742120743128,0.33317785,600.28,598.74,1.44140977]
[1742120743329,0.33317785,600.28,598.76,0.33402364]
[1742120743523,0.33317785,600.28,598.77,3.44837633]
[1742120743727,0.33317785,600.28,598.79,0.33400691]
[1742120743922,0.33317785,600.28,598.8,3.14146346]
[1742120744123,0.33317785,600.28,598.82,0.33399018]
[1742120744726,0.33317785,600.28,598.83,1.06251294]
[1742120744928,0.33317785,600.28,598.85,0.33397344]
[1742120745130,0.33317785,600.28,598.86,1.06251075]
[1742120745431,0.33317785,600.28,598.84,1.2266745]
[1742120745432,0.33317785,600.28,598.88,0.33395671]
[1742120746132,0.33317785,600.28,598.89,1.2266745]
[1742120746331,0.33317785,600.28,598.91,0.33393999]
[1742120751734,0.33317785,600.28,598.92,1.4404982]
[1742120751935,0.33317785,600.28,598.94,0.33392326]
[1742120752137,0.33317785,600.28,598.95,1.06202167]
[1742120752336,0.33317785,600.28,598.97,0.33390653]
[1742120752634,0.33317785,600.28,598.98,1.06202167]
[1742120752829,0.33317785,600.28,599.0,0.33388981]
[1742120754837,0.33317785,600.28,598.82,0.29022977]
[1742120755133,2.50412338,600.9,598.83,3.74494406]
[1742120755336,2.50412338,600.9,598.84,3.13939035]
[1742120755530,2.50412338,600.9,598.85,4.3650909]
[1742120755734,2.50412338,600.9,598.86,3.13939035]
[1742120755934,2.50412338,600.9,598.87,3.13939035]
[1742120756136,2.50412338,600.9,598.88,3.13931731]
[1742120756333,2.50412338,600.9,598.89,1.44033278]
[1742120756640,0.2901983,600.93,598.9,2.28761153]
[1742120756835,0.2901983,600.93,598.91,1.0619048]
[1742120757041,0.2901983,600.93,598.9,1.22570055]
[1742120757438,0.2901983,600.93,598.91,1.22570055]
[1742120758140,0.2901983,600.93,598.83,3.18687773]
[1742120758441,0.2901983,600.93,598.84,1.44026257]
[1742120758640,0.2901983,600.93,598.85,2.66596312]
[1742120758840,0.2901983,600.93,598.86,1.06183453]
[1742120759142,0.2901983,600.93,598.87,1.22570055]
[1742120759342,2.50412338,600.79,598.88,1.06183453]
[1742120759542,2.50412338,600.79,598.89,1.06192684]
[1742120759742,2.50412338,600.79,598.87,1.22570055]
[1742120759941,2.50412338,600.79,598.82,0.29022977]
[1742120760139,2.50412338,600.79,598.83,1.06193116]
[1742120760336,2.50412338,600.79,597.66,1.24313126]
[1742120760337,2.50412338,600.79,598.84,1.06193116]
[1742120760540,2.50412338,600.79,598.85,1.06193116]
[1742120760840,2.50412338,600.79,598.84,1.22578334]
[1742120761039,2.50412338,600.7,598.85,1.06193215]
[1742120761237,2.50412338,600.7,598.86,1.06193211]
[1742120761539,2.50412338,600.7,598.86,2.68878334]
[1742120761737,2.50412338,600.7,598.87,1.708]
[1742120763844,2.50412338,600.67,598.87,1.708]
[1742120764045,2.50412338,600.67,598.88,1.06206257]
[1742120764249,2.50412338,600.67,598.89,1.06206257]
[1742120764440,2.50412338,600.67,598.89,1.2258661]
[1742120764846,2.50412338,600.67,598.9,1.2258661]
[1742120765350,2.50412338,600.67,598.88,1.2258661]
[1742120765553,2.50412338,600.67,598.89,1.0620742]
[1742120765851,2.50412338,600.67,598.9,1.0620742]
[1742120766051,0.29023703,600.86,598.91,1.0620742]
[1742120766248,0.29023703,600.86,598.9,1.2258661]
[1742120766249,2.50412338,600.9,598.9,1.2258661]
[1742120766449,2.50412338,600.9,598.91,1.06207824]
[1742120766651,0.29020556,600.86,598.9,1.2258661]
[1742120766858,2.50412338,600.9,598.88,1.2258661]
[1742120767456,2.50412338,600.9,598.87,1.99820556]
[1742120767854,2.50412338,600.91,598.87,1.99820556]
[1742120769955,2.50412338,600.35,598.88,1.22592111]
[1742120770559,2.50412338,600.35,598.89,1.06203694]
[1742120770759,2.50412338,600.35,598.87,1.99820556]
[1742120771755,2.50412338,600.35,598.88,0.3066082]
[1742120771960,2.50412338,600.35,598.87,1.99820556]
[1742120772157,2.50412338,600.43,598.87,1.99820556]
[1742120772363,2.50412338,600.43,598.87,1.708]
[1742120772563,2.50412338,600.43,598.87,1.99824792]
[1742120773263,2.50412338,600.43,598.88,1.22609908]
[1742120773662,2.50412338,600.43,598.87,1.99824792]
[1742120774061,2.50412338,600.43,598.88,3.13974051]
[1742120774256,2.50412338,600.43,598.89,1.43999228]
[1742120774460,2.50412338,600.67,598.9,1.43999228]
[1742120774658,2.50412338,600.67,598.91,1.43999228]
[1742120774863,2.50412338,600.67,598.92,0.37764964]
[1742120775056,2.50412338,600.67,598.93,1.44002282]
[1742120775262,2.50412338,600.67,598.94,1.44001837]
[1742120775457,2.50412338,600.67,598.95,1.06237318]
[1742120775658,2.50412338,600.67,598.96,1.06237318]
[1742120775963,2.50412338,600.67,598.97,1.06237318]
[1742120776166,2.50412338,600.67,598.98,1.0623296]
[1742120776464,2.50412338,600.71,598.98,1.22624101]
[1742120777162,2.50412338,600.71,598.99,1.22624101]
[1742120777559,2.50412338,600.71,598.87,1.99824792]
[1742120777765,2.50412338,600.71,598.88,1.43995144]
[1742120777959,2.50412338,600.71,598.89,1.43995144]
[1742120778164,2.50412338,600.71,598.9,1.43995659]
[1742120778359,2.50412338,600.71,598.91,1.43995659]
[1742120778661,2.50412338,600.71,598.92,2.28851935]
[1742120778860,2.50412338,600.71,598.93,1.06230908]
[1742120779466,2.50412338,600.71,598.94,1.22621027]
[1742120779667,2.50412338,600.71,598.95,1.06238838]
[1742120779867,2.50412338,600.71,598.94,1.22621027]
[1742120780266,2.50412338,600.62,598.94,1.22621027]
[1742120780461,2.50412338,600.62,598.89,1.22621027]
[1742120780664,2.50412338,600.62,598.9,1.44016421]
[1742120780863,2.50412338,600.62,598.91,1.44016421]
[1742120781069,2.50412338,600.62,598.92,1.44016421]
[1742120781267,2.50412338,600.62,598.93,1.4401317]
[1742120781467,2.50412338,600.62,598.94,1.06243741]
[1742120781667,2.50412338,600.62,598.95,1.44010832]
[1742120781869,2.50412338,600.58,598.96,1.06243741]
[1742120782070,2.50412338,600.58,598.93,1.22621027]
[1742120782564,2.50412338,600.58,598.89,1.22621027]
[1742120783070,2.50412338,600.58,598.9,1.06242103]
[1742120783268,2.50412338,600.58,598.89,1.22621027]
[1742120783465,2.50412338,600.58,598.91,1.22621027]
[1742120783669,2.50412338,600.65,598.91,1.22621027]
[1742120784569,2.50412338,600.65,598.92,1.06268423]
[1742120784771,2.50412338,600.65,598.89,1.51641462]
[1742120784969,2.50412338,600.65,598.9,1.06271286]
[1742120785170,2.50412338,600.65,598.89,0.29020435]
[1742120785773,2.50412338,600.62,598.89,0.29020435]
[1742120787368,2.50412338,600.62,598.87,1.708]
[1742120787673,2.50412338,600.62,598.89,0.2902225]
[1742120787874,2.50412338,600.27,598.89,0.2902225]
[1742120789070,2.50412338,600.27,598.9,2.76537285]
[1742120789274,2.50412338,600.27,598.91,0.37807485]
[1742120789471,2.50412338,600.27,598.92,1.44167171]
[1742120789671,2.50412338,600.27,598.93,1.44167171]
[1742120789874,2.50412338,600.27,598.94,1.44167171]
[1742120790076,2.50412338,600.14,598.95,1.44167171]
[1742120790277,2.50412338,600.14,598.96,1.44167171]
[1742120790477,2.50412338,600.14,598.97,1.44185408]
[1742120790679,2.50412338,600.14,598.98,1.06359686]
[1742120790973,2.50412338,600.14,598.99,1.44187611]
[1742120791178,2.50412338,600.14,599.0,1.06359686]
[1742120791478,2.50412338,600.35,599.01,1.44195595]
[1742120791675,2.50412338,600.35,599.02,1.06359686]
[1742120792178,2.50412338,600.35,599.03,1.22793877]
[1742120792375,2.50412338,600.35,599.04,1.06473445]
[1742120792573,2.50412338,600.35,599.05,1.06473445]
[1742120792773,2.50412338,600.35,599.06,1.06468802]
[1742120792974,2.50412338,600.35,599.07,1.06469037]
[1742120793176,2.50412338,600.35,599.05,1.22793877]
[1742120793378,2.50412338,600.35,599.02,1.316]
[1742120793379,2.50412338,600.35,599.06,1.44328565]
[1742120793676,2.50412338,600.51,599.07,1.06470507]
[1742120793877,2.50412338,600.51,599.08,1.06470507]
[1742120794078,2.50412338,600.51,599.09,1.06470507]
[1742120794278,2.50412338,600.51,599.1,1.06470507]
[1742120795374,2.50412338,600.51,599.11,1.22793877]
[1742120795580,2.50412338,600.71,599.13,0.33381736]
[1742120795879,0.33294489,600.7,599.14,1.06470507]
[1742120796073,0.33294489,600.7,599.16,0.33380065]
[1742120798379,0.33294489,600.7,599.17,1.23070258]
[1742120798582,0.33294489,600.7,599.16,0.33380065]
[1742120800388,2.50412338,600.59,599.16,0.33380065]
[1742120802289,0.33301142,600.58,599.16,0.33380065]
[1742120803996,2.50412338,600.28,599.16,0.33380065]
[1742120806595,2.50412338,600.07,599.16,0.33380065]
[1742120806794,2.50412338,600.07,599.16,2.12380065]
[1742120808696,0.33301142,600.58,599.16,2.12380065]
[1742120808697,2.50412338,600.02,599.16,2.12380065]
[1742120808900,2.50412338,600.02,599.16,1.79]
[1742120812298,0.33301142,600.58,599.16,1.79]
[1742120817802,2.50412338,600.17,599.16,1.79]
[1742120819609,2.50412338,600.4,599.16,1.79]
[1742120820207,0.3331168,600.39,599.16,1.79]
[1742120831914,0.3331168,600.39,599.17,0.33379508]
[1742120834120,0.3331168,600.39,599.17,1.92579508]
[1742120842027,2.83724018,600.39,599.17,1.92579508]
[1742120844028,0.3331168,600.39,599.17,1.92579508]
[1742120850536,2.83724018,600.39,599.17,1.92579508]
[1742120852530,2.50412338,600.35,599.17,1.92579508]
[1742120852738,2.50412338,600.35,599.17,3.20279508]
[1742120854935,2.50412338,599.98,599.17,3.20279508]
[1742120855332,2.50412338,599.98,599.17,2.869]
[1742120857739,0.3331168,600.39,599.17,2.869]
[1742120866447,0.3331168,600.39,599.18,0.33378951]
[1742120871752,0.3331168,600.39,599.18,1.81278951]
[1742120894281,0.3331168,600.39,599.18,3.49578951]
[1742120894679,0.3331168,600.39,599.19,3.74296108]
[1742120894881,0.3331168,600.39,599.2,3.74296108]
[1742120895080,0.3331168,600.39,599.21,3.14396193]
[1742120895277,2.50412338,600.78,599.23,0.33376166]
[1742120895583,2.50412338,600.78,599.24,3.14396193]
[1742120895783,2.50412338,600.78,599.26,0.33374495]
[1742120896079,2.50412338,600.78,599.27,6.336156]
[1742120896287,2.50412338,600.78,599.29,0.33372824]
[1742120896484,2.50412338,600.78,599.3,1.06512086]
[1742120896685,2.50412338,601.06,599.32,0.33371153]
[1742120896886,0.33275655,601.04,599.32,0.33371153]
[1742120899389,2.50412338,600.72,599.32,0.33371153]
[1742120899687,0.33293935,600.71,599.32,0.33371153]
[1742120903495,2.50412338,600.35,599.32,0.33371153]
[1742120904893,2.50412338,600.36,599.32,0.33371153]
[1742120906795,2.50412338,600.25,599.32,0.33371153]
[1742120910993,0.33293935,600.71,599.32,0.33371153]
[1742120912399,2.50412338,600.54,599.32,0.33371153]
[1742120912598,0.33303914,600.53,599.32,0.33371153]
[1742120914601,2.50412338,600.52,599.32,0.33371153]
[1742120914896,0.33305024,600.51,599.32,0.33371153]
[1742120919797,0.33305024,600.51,599.33,1.095]
[1742120935816,0.33305024,600.51,599.32,0.33371153]
[1742120937716,2.50412338,600.45,599.32,0.33371153]
[1742120939223,2.50412338,600.45,599.33,1.627]
[1742120939436,0.33305024,600.51,599.33,1.627]
[1742120939723,0.33305024,600.51,599.34,1.529]
[1742120942221,0.33305024,600.51,599.35,0.33369483]
[1742120949322,2.50412338,600.49,599.35,0.33369483]
[1742120950829,0.33305024,600.51,599.35,0.33369483]
[1742120961237,2.52341486,600.78,599.35,0.33369483]
[1742120961636,2.52341486,600.78,599.36,1.181]
[1742120961841,2.52341486,600.78,599.37,0.3336837]
[1742120962434,2.52341486,600.82,599.37,0.3336837]
[1742120962738,2.85629325,600.82,599.37,0.3336837]
[1742120964638,0.33287839,600.82,599.37,0.3336837]
[1742120967042,2.52341486,600.74,599.37,0.3336837]
[1742120969041,0.33287839,600.82,599.37,0.3336837]
[1742120969042,2.52341486,600.68,599.37,0.3336837]
[1742120970738,2.52341486,600.77,599.37,0.3336837]
[1742120972344,2.52341486,600.77,599.38,1.786]
[1742120972546,2.52341486,600.77,599.39,0.33367256]
[1742120972740,0.33287839,600.82,599.39,0.33367256]
[1742120983155,2.52341486,600.8,599.39,0.33367256]
[1742120985257,2.52341486,600.76,599.39,0.33367256]
[1742120987052,2.52341486,600.73,599.39,0.33367256]
[1742120989361,2.52341486,600.57,599.39,0.33367256]
[1742120991462,2.52341486,600.69,599.39,0.33367256]
[1742120993871,2.52341486,600.68,599.39,0.33367256]
[1742120995069,2.52341486,600.68,599.4,1.365]
[1742120995269,2.52341486,600.68,599.41,0.33366143]
[1742120995769,0.33287839,600.82,599.41,0.33366143]
[1742120995770,2.52341486,600.62,599.41,0.33366143]
[1742120997871,2.52341486,600.67,599.41,0.33366143]
[1742120998775,0.33296706,600.66,599.41,0.33366143]
[1742121001379,2.52341486,600.49,599.41,0.33366143]
[1742121002675,2.52341486,600.43,599.41,0.33366143]
[1742121004480,2.52341486,600.62,599.41,0.33366143]
[1742121007281,2.52341486,600.65,599.41,0.33366143]
[1742121009385,2.52341486,600.62,599.41,0.33366143]
[1742121011781,0.33296706,600.66,599.41,0.33366143]
[1742121012183,0.33296706,600.66,599.42,1.06757609]
[1742121012382,0.33296706,600.66,599.43,1.40122639]
[1742121012584,0.33296706,600.66,599.44,1.40122082]
[1742121012782,0.33296706,600.66,599.45,1.40121525]
[1742121012980,0.33296706,600.66,599.46,1.40120969]
[1742121013183,0.33296706,600.66,599.47,1.40115921]
[1742121013385,0.33296706,600.66,599.48,0.33362247]
[1742121015290,2.52341486,601.09,599.48,0.33362247]
[1742121015588,0.33273441,601.08,599.48,0.33362247]
[1742121016790,2.52341486,601.04,599.48,0.33362247]
[1742121017089,0.33276209,601.03,599.48,0.33362247]
[1742121021687,2.52341486,600.78,599.48,0.33362247]
[1742121023493,2.52341486,600.73,599.48,0.33362247]
[1742121025194,2.52341486,600.95,599.48,0.33362247]
[1742121025492,0.33281192,600.94,599.48,0.33362247]
[1742121029296,0.33281192,600.94,599.49,1.06705435]
[1742121029496,0.33281192,600.94,599.5,0.33361134]
[1742121030791,0.33281192,600.94,599.51,1.06679919]
[1742121030990,0.33281192,600.94,599.51,1.23128019]
[1742121031396,0.33281192,600.94,599.5,0.33361134]
[1742121033598,0.33281192,600.94,599.51,1.06640082]
[1742121033797,0.33281192,600.94,599.53,0.33359464]
[1742121040698,2.52341486,600.7,599.53,0.33359464]
[1742121043296,0.33281192,600.94,599.53,0.33359464]
[1742121043297,2.52341486,600.71,599.53,0.33359464]
[1742121044302,2.52341486,600.81,599.53,0.33359464]
[1742121044502,0.33288948,600.8,599.53,0.33359464]
[1742121050918,2.52341486,600.52,599.53,0.33359464]
[1742121053417,2.52341486,600.6,599.53,0.33359464]
[1742121055513,2.52341486,600.76,599.53,0.33359464]
[1742121057215,2.52341486,600.68,599.53,0.33359464]
[1742121059823,2.52341486,600.72,599.53,0.33359464]
[1742121061723,2.85630434,600.8,599.53,0.33359464]
[1742121064124,2.52341486,600.75,599.53,0.33359464]
[1742121064324,0.33292272,600.74,599.53,0.33359464]
[1742121065919,2.52341486,600.46,599.53,0.33359464]
[1742121068029,2.52341486,600.48,599.53,0.33359464]
[1742121070028,2.52341486,600.69,599.53,0.33359464]
[1742121070328,0.33295598,600.68,599.53,0.33359464]
[1742121071535,0.33295598,600.68,599.49,1.328]
[1742121072723,2.52341486,600.48,599.49,1.328]
[1742121074723,2.52341486,600.53,599.49,1.328]
[1742121074923,0.33304469,600.52,599.49,1.328]
[1742121100449,2.52341486,600.49,599.49,1.328]
[1742121100649,2.85647619,600.49,599.49,1.328]
[1742121102948,2.52341486,600.46,599.49,1.328]
[1742121104554,0.33306133,600.49,599.49,1.328]
[1742121110958,2.52341486,599.95,599.49,1.328]
[1742121111751,2.52341486,599.95,598.94,0.2902334]
[1742121111953,2.52341486,599.95,598.96,0.33391211]
[1742121113060,2.52341486,599.94,598.96,0.33391211]
[1742121114953,2.52341486,599.94,598.97,1.046]
[1742121115156,2.52341486,600.45,598.98,0.33390096]
[1742121115157,2.52341486,600.05,598.98,0.33390096]
[1742121118664,2.52341486,600.2,598.98,0.33390096]
[1742121121563,2.52341486,600.25,598.99,1.06662845]
[1742121121763,2.52341486,600.25,599.0,0.33388981]
[1742121122361,2.52341486,600.25,599.01,1.44192758]
[1742121122561,2.52341486,600.25,599.02,1.06658845]
[1742121123064,2.52341486,600.25,599.03,1.56510864]
[1742121123264,2.52341486,600.25,599.04,1.40045597]
[1742121123558,2.52341486,600.25,599.05,1.40045039]
[1742121123763,2.52341486,600.26,599.06,1.40044482]
[1742121123962,2.52341486,600.26,599.07,1.40043925]
[1742121124264,2.52341486,600.26,599.08,1.06658845]
[1742121124563,2.52341486,600.26,599.09,0.33383965]
[1742121124759,2.52341486,600.26,599.1,1.06658845]
[1742121125164,2.52341486,600.26,599.11,1.23123555]
[1742121125367,2.52341486,600.26,599.12,1.06658845]